bitfinex/quotes_ETHUSD_20251214
["timestamp","ask_amount","ask_price","bid_price","bid_amount"]
[1765699139025,1.3011634,3117.6,3117.5,0.002]
[1765699141657,0.8072634,3117.6,3117.5,0.002]
[1765699142857,0.80768112,3117.6,3117.5,0.002]
[1765699143457,0.80768112,3117.6,3117.5,0.4919]
[1765699145849,0.80768112,3117.6,3117.5,0.002]
[1765699146052,1.29848112,3117.6,3117.5,0.002]
[1765699146867,1.77753879,3117.6,3117.5,0.002]
[1765699147849,2.06322688,3117.6,3117.5,0.002]
[1765699149465,1.39476921,3117.6,3117.5,0.002]
[1765699154643,1.58416921,3117.6,3117.5,0.002]
[1765699155049,1.48788112,3117.6,3117.5,0.002]
[1765699157735,0.30168112,3117.6,3117.5,0.4919]
[1765699157934,0.80768112,3117.6,3117.5,0.9513]
[1765699160553,0.30168112,3117.6,3117.5,0.9513]
[1765699160750,0.80768112,3117.6,3117.5,0.9513]
[1765699167784,0.80768112,3117.6,3117.5,0.4919]
[1765699168151,1.48768112,3117.6,3117.5,0.002]
[1765699169272,2.06332168,3117.6,3117.5,0.002]
[1765699170278,5.27091726,3117.6,3117.5,0.002]
[1765699172787,2.06332168,3117.6,3117.5,0.002]
[1765699173288,1.55732168,3117.6,3117.5,0.002]
[1765699173454,1.85762168,3117.6,3117.5,0.002]
[1765699174069,2.06332168,3117.6,3117.5,0.002]
[1765699178564,5.27091726,3117.6,3117.5,0.002]
[1765699179390,2.06332168,3117.6,3117.5,0.002]
[1765699181974,1.38332168,3117.6,3117.5,0.002]
[1765699182175,1.38332168,3117.6,3117.5,0.4958]
[1765699185002,1.58842168,3117.6,3117.5,0.002]
[1765699187623,5.26821726,3117.6,3117.5,0.002]
[1765699190111,1.55462168,3117.6,3117.5,0.002]
[1765699190316,2.06062168,3117.6,3117.5,0.002]
[1765699190808,5.26821726,3117.6,3117.5,0.002]
[1765699195114,4.76221726,3117.6,3117.5,0.002]
[1765699195291,5.26821726,3117.6,3117.5,0.002]
[1765699199519,4.76221726,3117.6,3117.5,0.002]
[1765699199700,5.26821726,3117.6,3117.5,0.002]
[1765699200098,4.96753614,3117.6,3117.5,0.002]
[1765699200615,5.26832801,3117.6,3117.5,0.002]
[1765699202642,4.79612801,3117.6,3117.5,0.002]
[1765699202933,4.08502801,3117.6,3117.5,0.9465]
[1765699203093,0.78114434,3117.6,3117.5,0.9465]
[1765699203295,4.01538745,3117.6,3117.5,0.4836]
[1765699203606,3.50938745,3117.6,3117.5,0.4836]
[1765699203806,4.01538745,3117.6,3117.5,0.4836]
[1765699204024,3.50938745,3117.6,3117.5,0.4836]
[1765699204395,0.30179187,3117.6,3117.5,0.4836]
[1765699204600,0.30179187,3117.6,3117.5,0.9465]
[1765699204601,0.80779187,3117.6,3117.5,0.9465]
[1765699205821,4.74973475,3117.6,3117.5,0.002]
[1765699207236,4.24373475,3117.6,3117.5,0.002]
[1765699207526,1.31543917,3117.6,3117.5,0.4836]
[1765699208132,4.52303475,3117.6,3117.5,0.4836]
[1765699212833,1.31543917,3117.6,3117.5,0.4836]
[1765699213337,4.52303475,3117.6,3117.5,0.4836]
[1765699221446,4.52303475,3117.6,3117.5,0.002]
[1765699222447,4.75193475,3117.6,3117.5,0.002]
[1765699224262,4.52303475,3117.6,3117.5,0.002]
[1765699226651,4.75193475,3117.6,3117.5,0.002]
[1765699228431,4.52303475,3117.6,3117.5,0.5015]
[1765699229457,4.52303475,3117.6,3117.5,0.002]
[1765699230360,1.31543917,3117.6,3117.5,0.5015]
[1765699230670,1.31543917,3117.6,3117.5,0.9756]
[1765699231160,1.31543917,3117.6,3117.5,0.5015]
[1765699231865,1.31546816,3117.6,3117.5,0.5015]
[1765699233263,4.52306374,3117.6,3117.5,0.5015]
[1765699236366,1.31546816,3117.6,3117.5,0.5015]
[1765699236571,0.90410895,3117.6,3117.5,0.9756]
[1765699237071,0.80782086,3117.6,3117.5,0.9756]
[1765699237272,0.80782086,3117.6,3117.5,1.93892462]
[1765699238879,0.30182086,3117.6,3117.5,1.93892462]
[1765699239047,0.80782086,3117.6,3117.5,1.93892462]
[1765699239780,0.30182086,3117.6,3117.5,1.93892462]
[1765699239958,0.80782086,3117.6,3117.5,1.93892462]
[1765699240473,0.30182086,3117.6,3117.5,1.93892462]
[1765699240671,0.80782086,3117.6,3117.5,1.93892462]
[1765699244685,0.30182086,3117.6,3117.5,1.93892462]
[1765699244868,0.80782086,3117.6,3117.5,1.93892462]
[1765699246171,0.80758034,3117.6,3117.5,1.93892462]
[1765699253490,0.30158034,3117.6,3117.5,5.14662309]
[1765699255269,0.001,3117.6,3117.5,5.14662309]
[1765699256895,0.001,3117.6,3117.5,5.98207249]
[1765699259075,0.001,3117.6,3117.5,10.30547294]
[1765699262694,0.001,3117.6,3117.5,5.98207249]
[1765699267911,0.50643951,3117.9,3117.5,9.21217096]
[1765699268079,0.50643951,3117.9,3117.6,0.9672]
[1765699268607,0.50643951,3117.9,3117.8,20.176118]
[1765699268608,0.00043951,3117.9,3117.8,20.176118]
[1765699268810,0.00043951,3117.9,3117.8,20.672618]
[1765699269202,0.00043951,3117.9,3117.8,21.179618]
[1765699270281,0.00043951,3117.9,3117.8,24.38700782]
[1765699271311,0.00043951,3117.9,3117.8,26.16888874]
[1765699272513,0.00043951,3117.9,3117.8,6.46347074]
[1765699272703,0.00043951,3117.9,3117.8,4.68158982]
[1765699289613,0.00043951,3117.9,3117.8,4.68358982]
[1765699289925,0.67443951,3117.9,3117.8,0.509]
[1765699290100,0.97489608,3117.9,3117.8,0.509]
[1765699292707,1.39329401,3117.9,3117.8,0.509]
[1765699294024,0.97489608,3117.9,3117.8,0.509]
[1765699294705,1.47989608,3117.9,3117.8,0.509]
[1765699297030,1.47989608,3117.9,3117.8,0.002]
[1765699300941,1.47975353,3117.9,3117.8,0.002]
[1765699308913,1.28045353,3117.9,3117.8,0.002]
[1765699309342,0.77545353,3117.9,3117.8,0.002]
[1765699309535,1.28038783,3117.9,3117.8,0.002]
[1765699309843,1.28038783,3117.9,3117.8,0.77745353]
[1765699311145,0.77538783,3117.9,3117.8,0.77745353]
[1765699311547,1.28038783,3117.9,3117.8,0.77745353]
[1765699314048,1.28038783,3117.9,3117.8,3.98484335]
[1765699314540,0.80568783,3117.9,3117.8,4.43674335]
[1765699315050,0.80568783,3117.9,3117.8,4.90184335]
[1765699315648,0.80579798,3117.9,3117.8,4.90184335]
[1765699316842,0.80579798,3117.9,3117.8,4.43674335]
[1765699317850,0.80579798,3117.9,3117.8,1.22935353]
[1765699318818,0.80579798,3117.9,3117.8,4.43674335]
[1765699319045,0.30079798,3117.9,3117.8,4.43674335]
[1765699319251,0.80579798,3117.9,3117.8,4.43674335]
[1765699321045,0.8061955,3117.9,3117.8,4.43674335]
[1765699326964,0.80618348,3117.9,3117.8,4.43674335]
[1765699328563,0.30118348,3117.9,3117.8,4.43674335]
[1765699328766,0.30118348,3117.9,3117.8,4.91044335]
[1765699328767,0.80618348,3117.9,3117.8,4.91044335]
[1765699329770,0.80618348,3117.9,3117.8,4.43674335]
[1765699332169,0.30118348,3117.9,3117.8,4.43674335]
[1765699332341,0.80618348,3117.9,3117.8,4.43674335]
[1765699333773,0.30118348,3117.9,3117.8,4.91044335]
[1765699334072,0.50543951,3117.9,3117.8,4.91044335]
[1765699340672,0.00043951,3117.9,3117.8,4.91044335]
[1765699343282,0.00043951,3117.9,3117.8,5.68084716]
[1765699343596,0.00043951,3117.9,3117.8,6.15454716]
[1765699344457,0.00043951,3117.9,3117.8,4.91044335]
[1765699345177,0.00043951,3117.9,3117.8,9.23354214]
[1765699345748,0.00043951,3117.9,3117.8,29.96119322]
[1765699346001,0.00043951,3117.9,3117.8,44.13711622]
[1765699346283,0.00043951,3117.9,3117.8,33.56441622]
[1765699346982,0.00043951,3117.9,3117.8,14.54262022]
[1765699347183,0.00043951,3117.9,3117.8,39.36992022]
[1765699348051,0.00043951,3117.9,3117.8,35.53720222]
[1765699348679,0.00043951,3117.9,3117.8,35.21048122]
[1765699349090,0.00043951,3117.9,3117.8,42.85226622]
[1765699350079,0.00043951,3117.9,3117.8,44.26171122]
[1765699350280,0.00043951,3117.9,3117.8,43.94089022]
[1765699350484,0.00043951,3117.9,3117.8,43.01802622]
[1765699350689,0.00043951,3117.9,3117.8,32.63885122]
[1765699351055,0.00043951,3117.9,3117.8,32.45983522]
[1765699352159,0.00043951,3117.9,3117.8,33.46379822]
[1765699352571,0.00043951,3117.9,3117.8,32.46379822]
[1765699353076,0.00043951,3117.9,3117.8,14.54262022]
[1765699353279,0.00043951,3117.9,3117.8,38.27046522]
[1765699354281,0.00043951,3117.9,3117.8,14.54262022]
[1765699354483,0.00043951,3117.9,3117.8,40.03296522]
[1765699355287,0.00043951,3117.9,3117.8,40.02613424]
[1765699355487,0.00043951,3117.9,3117.8,42.22613424]
[1765699355660,0.00043951,3117.9,3117.8,40.02613424]
[1765699357497,0.00043951,3117.9,3117.8,40.02577124]
[1765699357896,0.00043951,3117.9,3117.8,35.82577124]
[1765699358404,0.00043951,3117.9,3117.8,33.22698024]
[1765699358695,0.00043951,3117.9,3117.8,32.84968024]
[1765699359817,0.00043951,3117.9,3117.8,33.22698024]
[1765699361567,0.00043951,3117.9,3117.8,32.81335424]
[1765699361769,0.00043951,3117.9,3117.8,33.07122024]
[1765699362769,0.00043951,3117.9,3117.8,40.27959224]
[1765699363197,0.00043951,3117.9,3117.8,39.33330824]
[1765699364789,0.00043951,3117.9,3117.8,44.53578924]
[1765699365704,0.00043951,3117.9,3117.8,43.83967624]
[1765699366801,0.00043951,3117.9,3117.8,44.53578924]
[1765699369722,0.00043951,3117.9,3117.8,14.53578924]
[1765699369897,0.00043951,3117.9,3117.8,47.0138674]
[1765699373423,0.00043951,3117.9,3117.8,50.8438674]
[1765699374927,0.00043951,3117.9,3117.8,20.8438674]
[1765699375118,0.00043951,3117.9,3117.8,50.8438674]
[1765699376231,0.00043951,3117.9,3117.8,47.0138674]
[1765699377925,0.00043951,3117.9,3117.8,50.3938674]
[1765699378121,0.00043951,3117.9,3117.8,47.0138674]
[1765699380929,0.001,3118.0,3117.9,30.98597929]
[1765699381101,0.001,3118.0,3117.9,36.62412303]
[1765699381615,0.001,3118.0,3117.9,36.75247975]
[1765699382241,0.001,3118.0,3117.9,6.75247975]
[1765699382536,0.001,3118.0,3117.9,36.75247975]
[1765699383106,0.001,3118.1,3117.9,36.75247975]
[1765699383451,0.001,3118.5,3118.4,30.0]
[1765699383735,0.001,3118.5,3118.4,38.71852289]
[1765699384328,0.001,3118.5,3118.4,40.68944189]
[1765699384949,0.001,3118.5,3118.4,40.8177912]
[1765699385432,0.001,3118.5,3118.4,44.0245639]
[1765699385606,0.001,3118.5,3118.4,44.98582069]
[1765699386029,0.001,3118.5,3118.4,49.30300937]
[1765699386231,0.001,3118.5,3118.4,19.30300937]
[1765699386418,0.001,3118.5,3118.4,49.30300937]
[1765699386718,0.001,3118.5,3118.4,44.98083145]
[1765699386916,0.001,3118.5,3118.4,45.38633545]
[1765699387938,0.001,3118.6,3118.4,48.76533545]
[1765699388136,0.001,3118.6,3118.5,34.42865745]
[1765699388514,0.001,3118.6,3118.5,37.76366592]
[1765699390415,0.001,3118.6,3118.5,46.39675822]
[1765699391242,0.001,3118.6,3118.5,50.22675822]
[1765699392224,0.001,3118.6,3118.5,34.86517992]
[1765699392436,0.4587,3118.6,3118.5,31.32403707]
[1765699393353,0.7311,3118.6,3118.5,10.22356192]
[1765699393552,0.7311,3118.6,3118.5,7.74548376]
[1765699393743,0.7311,3118.6,3118.5,12.08350076]
[1765699394121,0.7311,3118.6,3118.5,12.48900476]
[1765699394344,0.7311,3118.6,3118.5,30.45166576]
[1765699394748,0.7311,3118.6,3118.5,29.31500676]
[1765699395451,0.4587,3118.6,3118.5,29.31500676]
[1765699395649,0.001,3118.6,3118.5,34.09805291]
[1765699396031,0.001,3118.6,3118.5,29.31100591]
[1765699396542,0.001,3118.6,3118.5,39.13588291]
[1765699396925,0.001,3118.6,3118.5,37.61148391]
[1765699397121,0.001,3118.6,3118.5,33.78148391]
[1765699397428,0.001,3118.6,3118.5,9.60213391]
[1765699397650,0.001,3118.6,3118.5,37.70539691]
[1765699398538,0.001,3118.6,3118.5,39.60213391]
[1765699399338,0.4587,3118.6,3118.5,27.08722076]
[1765699399558,0.7311,3118.6,3118.5,27.08732076]
[1765699399759,0.7311,3118.6,3118.5,6.92341876]
[1765699399929,0.7311,3118.6,3118.5,4.32098776]
[1765699400259,0.7311,3118.6,3118.5,3.91548376]
[1765699414490,0.7311,3118.6,3118.5,3.91748376]
[1765699416358,0.4587,3118.6,3118.5,3.91748376]
[1765699418464,0.7311,3118.6,3118.5,3.91748376]
[1765699430303,0.4587,3118.6,3118.5,3.91748376]
[1765699431393,0.7311,3118.6,3118.5,3.91748376]
[1765699433708,0.4587,3118.6,3118.5,3.91748376]
[1765699437120,0.7311,3118.6,3118.5,3.91748376]
[1765699437912,0.4587,3118.6,3118.5,3.91748376]
[1765699438216,0.001,3118.6,3118.5,4.37268376]
[1765699439812,0.001,3118.6,3118.5,3.91748376]
[1765699440119,0.001,3118.6,3118.5,4.37268376]
[1765699440425,0.001,3118.6,3118.5,4.84818376]
[1765699440598,0.001,3118.6,3118.5,9.1676418]
[1765699441179,0.001,3118.6,3118.5,8.6921418]
[1765699441830,0.001,3118.6,3118.5,9.1676418]
[1765699442386,0.001,3118.6,3118.5,8.6921418]
[1765699444333,0.001,3118.6,3118.5,25.28380725]
[1765699444533,0.001,3118.6,3118.5,17.61615725]
[1765699446791,0.001,3118.6,3118.5,10.81078725]
[1765699447001,0.001,3118.6,3118.5,40.81078725]
[1765699447202,0.001,3118.6,3118.5,36.03644925]
[1765699447890,0.001,3118.6,3118.5,42.15051007]
[1765699448790,0.001,3118.6,3118.5,15.63285807]
[1765699448987,0.001,3118.6,3118.5,45.63285807]
[1765699449692,0.001,3118.6,3118.5,43.28650907]
[1765699450389,0.001,3118.6,3118.5,42.73049807]
[1765699450922,0.001,3118.6,3118.5,45.63285807]
[1765699452128,0.001,3118.6,3118.5,44.22376407]
[1765699452420,0.4793,3118.6,3118.5,23.16322064]
[1765699452787,0.001,3118.6,3118.5,23.61842064]
[1765699453008,0.001,3118.6,3118.5,25.64330864]
[1765699453519,0.001,3118.6,3118.5,29.96157307]
[1765699453719,0.001,3118.6,3118.5,30.43707307]
[1765699454220,0.001,3118.6,3118.5,34.49336307]
[1765699455194,0.001,3118.6,3118.5,40.72537207]
[1765699456117,0.001,3118.6,3118.5,45.63285807]
[1765699461422,0.001,3118.6,3118.5,45.62979393]
[1765699463427,0.001,3118.6,3118.5,15.62979393]
[1765699463632,0.001,3118.6,3118.5,45.62979393]
[1765699468618,0.001,3118.6,3118.5,49.45979393]
[1765699468818,0.001,3118.6,3118.5,19.45979393]
[1765699469031,0.001,3118.6,3118.5,49.45979393]
[1765699470841,0.001,3118.6,3118.5,19.45979393]
[1765699471036,0.001,3118.6,3118.5,49.45979393]
[1765699471848,0.001,3118.6,3118.5,19.45979393]
[1765699472049,0.001,3118.6,3118.5,49.45979393]
[1765699474046,0.001,3118.6,3118.5,35.66012521]
[1765699474047,0.0569,3118.6,3118.5,35.66012521]
[1765699474226,0.001,3118.6,3118.5,45.25348993]
[1765699474427,0.001,3118.6,3118.5,45.65899393]
[1765699477250,0.001,3118.6,3118.5,15.65899393]
[1765699477458,0.001,3118.6,3118.5,45.65899393]
[1765699477943,0.001,3118.6,3118.5,45.17569393]
[1765699478345,0.001,3118.6,3118.5,44.93367293]
[1765699479263,0.001,3118.6,3118.5,15.17569393]
[1765699479475,0.001,3118.6,3118.5,45.17569393]
[1765699479842,0.254,3118.6,3118.5,44.69909393]
[1765699480044,0.254,3118.6,3118.5,43.61640593]
[1765699480341,0.254,3118.6,3118.5,14.69909393]
[1765699480543,0.254,3118.6,3118.5,40.57376448]
[1765699481069,0.254,3118.6,3118.5,31.02979576]
[1765699481070,0.7452,3118.6,3118.5,31.02979576]
[1765699481268,0.7452,3118.6,3118.5,3.33700847]
[1765699481475,0.7452,3118.6,3118.5,3.91748376]
[1765699481645,0.7452,3118.6,3118.5,8.23421612]
[1765699493074,0.254,3118.6,3118.5,12.55094848]
[1765699493767,0.001,3118.6,3118.5,8.63972012]
[1765699493971,0.001,3118.6,3118.5,32.99906812]
[1765699494272,0.001,3118.6,3118.5,22.36084012]
[1765699494984,0.2564,3118.6,3118.5,22.36084012]
[1765699496285,0.2564,3118.6,3118.5,22.36279789]
[1765699499186,0.2564,3118.6,3118.5,22.31279789]
[1765699501000,0.2564,3118.6,3118.5,15.59629989]
[1765699501289,0.7452,3118.6,3118.5,13.63506589]
[1765699502459,0.7452,3118.6,3118.5,11.28556189]
[1765699503293,0.7452,3118.6,3118.5,8.18617389]
[1765699503474,0.7452,3118.6,3118.5,3.86748376]
[1765699510789,0.2564,3118.6,3118.5,3.86748376]
[1765699510972,0.7452,3118.6,3118.5,3.86748376]
[1765699515899,0.7452,3118.6,3118.5,0.71081389]
[1765699516198,1.0456231,3118.6,3118.5,0.002]
[1765699516413,0.7452,3118.6,3118.5,0.002]
[1765699517994,1.14046735,3118.6,3118.5,0.002]
[1765699519296,1.23675544,3118.6,3118.5,0.002]
[1765699519818,1.14046735,3118.6,3118.5,0.002]
[1765699521597,4.64697323,3118.6,3118.5,0.002]
[1765699526519,8.96660467,3118.6,3118.5,0.002]
[1765699528725,4.64697323,3118.6,3118.5,0.002]
[1765699529022,8.96660467,3118.6,3118.5,0.002]
[1765699531410,8.96988716,3118.6,3118.5,0.002]
[1765699534431,9.09972792,3118.6,3118.5,0.002]
[1765699536219,8.96930567,3118.6,3118.5,0.002]
[1765699537340,9.09773699,3118.6,3118.5,0.002]
[1765699539538,4.77482306,3118.6,3118.5,0.002]
[1765699539740,0.9510247,3118.6,3118.5,0.002]
[1765699540054,0.80635735,3118.6,3118.5,0.002]
[1765699541334,0.80635735,3118.6,3118.5,0.483]
[1765699546121,0.80635735,3118.6,3118.5,0.002]
[1765699546441,1.09825735,3118.6,3118.5,0.002]
[1765699551942,0.30035735,3118.6,3118.5,0.483]
[1765699552129,0.80635735,3118.6,3118.5,0.973]
[1765699552441,0.80635735,3118.6,3118.5,1.10140617]
[1765699554251,0.80635735,3118.6,3118.5,0.483]
[1765699554548,1.08525735,3118.6,3118.5,0.002]
[1765699556318,1.56941106,3118.6,3118.5,0.002]
[1765699557461,1.08525735,3118.6,3118.5,0.002]
[1765699559838,0.80635735,3118.6,3118.5,0.002]
[1765699560759,0.80635735,3118.6,3118.5,0.9948]
[1765699562426,0.80535735,3118.6,3118.5,0.9948]
[1765699564359,0.30035735,3118.6,3118.5,0.9948]
[1765699564524,0.80535735,3118.6,3118.5,0.9948]
[1765699564725,0.80535735,3118.6,3118.5,4.20146987]
[1765699565023,0.30035735,3118.6,3118.5,4.20146987]
[1765699565245,0.506,3118.6,3118.5,4.20146987]
[1765699565454,0.001,3118.6,3118.5,4.50182722]
[1765699567956,0.001,3118.6,3118.5,8.82080208]
[1765699578961,0.001,3118.6,3118.5,13.13977694]
[1765699579970,0.001,3118.6,3118.5,8.82080208]
[1765699591480,0.001,3118.6,3118.5,8.32590208]
[1765699591682,0.001,3118.6,3118.5,4.00692722]
[1765699591976,0.001,3118.6,3118.5,8.32590208]
[1765699593580,0.001,3118.6,3118.5,8.78170208]
[1765699594377,0.001,3118.6,3118.5,8.32590208]
[1765699594966,0.2562,3118.6,3118.5,3.50902722]
[1765699595663,0.745,3118.6,3118.5,3.50902722]
[1765699596182,0.745,3118.6,3118.5,3.20866987]
[1765699599590,0.745,3118.6,3118.5,0.002]
[1765699601887,0.2562,3118.6,3118.5,0.002]
[1765699602054,0.7612,3118.6,3118.5,0.002]
[1765699606186,0.506,3118.6,3118.5,0.4848]
[1765699606491,0.506,3118.6,3118.5,0.9406]
[1765699608167,0.506,3118.6,3118.5,4.14726987]
[1765699608590,0.001,3118.6,3118.5,4.14726987]
[1765699610468,0.001,3118.6,3118.5,4.65326987]
[1765699612995,0.001,3118.6,3118.5,4.19746987]
[1765699617099,0.4901,3118.6,3118.5,3.71466987]
[1765699622608,0.7452,3118.6,3118.5,0.002]
[1765699627502,1.04584652,3118.6,3118.5,0.002]
[1765699629511,1.04577963,3118.6,3118.5,0.002]
[1765699635381,0.30157963,3118.6,3118.5,0.4628]
[1765699635585,0.506,3118.6,3118.5,0.933]
[1765699636209,0.001,3118.6,3118.5,0.4628]
[1765699636384,0.506,3118.6,3118.5,0.4628]
[1765699637212,0.506,3118.6,3118.5,3.66946987]
[1765699637617,0.7964,3118.6,3118.5,3.20866987]
[1765699637907,1.09688885,3118.6,3118.5,3.20866987]
[1765699639090,1.54868885,3118.6,3118.5,3.20866987]
[1765699639623,1.54868885,3118.6,3118.5,0.002]
[1765699648417,1.09688885,3118.6,3118.5,0.002]
[1765699650825,0.80648885,3118.6,3118.5,0.002]
[1765699651516,0.80648885,3118.6,3118.5,0.4738]
[1765699651718,0.30148885,3118.6,3118.5,0.4738]
[1765699651897,0.80648885,3118.6,3118.5,0.4738]
[1765699652921,0.30148885,3118.6,3118.5,3.68046987]
[1765699653101,0.80648885,3118.6,3118.5,4.16576987]
[1765699654332,0.80648885,3118.6,3118.5,3.68046987]
[1765699655828,1.07898885,3118.6,3118.5,3.20866987]
[1765699657633,1.07898885,3118.6,3118.5,4.17160798]
[1765699661335,0.57398885,3118.6,3118.5,4.17160798]
[1765699661542,1.07898885,3118.6,3118.5,4.17160798]
[1765699662328,1.54848885,3118.6,3118.5,4.17160798]
[1765699662727,1.07898885,3118.6,3118.5,4.17160798]
[1765699669338,0.80648885,3118.6,3118.5,4.64340798]
[1765699672745,0.80648885,3118.6,3118.5,5.12870798]
[1765699673330,0.80648885,3118.6,3118.5,4.64340798]
[1765699673925,1.07418885,3118.6,3118.5,4.17160798]
[1765699674120,1.54358885,3118.6,3118.5,4.17160798]
[1765699677143,1.07418885,3118.6,3118.5,4.17160798]
[1765699678118,1.07418885,3118.6,3118.5,4.65390798]
[1765699678119,0.80648885,3118.6,3118.5,4.65390798]
[1765699678634,0.80648885,3118.6,3118.5,5.11620798]
[1765699679039,0.30148885,3118.6,3118.5,4.65390798]
[1765699679341,0.80648885,3118.6,3118.5,5.11620798]
[1765699680849,0.30148885,3118.6,3118.5,4.65390798]
[1765699681030,0.001,3118.6,3118.5,5.11620798]
[1765699685743,0.001,3118.6,3118.5,9.43659781]
[1765699689956,0.001,3118.6,3118.5,9.4351858]
[1765699699064,0.001,3118.6,3118.5,14.33463891]
[1765699699264,0.001,3118.9,3118.6,31.93057929]
[1765699699563,0.001,3118.9,3118.8,40.10623493]
[1765699700064,0.001,3118.9,3118.8,41.53112082]
[1765699700262,0.001,3118.9,3118.8,37.212143]
[1765699701465,0.001,3118.9,3118.8,44.73748224]
[1765699701637,0.001,3118.9,3118.8,46.101798]
[1765699704761,0.001,3118.9,3118.8,16.101798]
[1765699704950,0.001,3118.9,3118.8,46.101798]
[1765699706871,16.54792177,3119.0,3118.9,41.51587529]
[1765699707071,33.27446088,3119.0,3118.9,33.59089448]
[1765699707246,33.27446088,3119.0,3118.9,42.22244662]
[1765699707572,33.27446088,3119.0,3118.9,43.18491207]
[1765699708081,33.27446088,3119.0,3118.9,46.39117068]
[1765699710571,33.27446088,3119.0,3118.9,46.79667468]
[1765699711846,33.27446088,3119.0,3118.9,16.79667468]
[1765699712049,33.27446088,3119.0,3118.9,46.79667468]
[1765699714084,18.80241496,3119.0,3118.9,46.79667468]
[1765699714946,15.09357316,3119.0,3118.9,16.79667468]
[1765699715147,24.18351702,3119.0,3118.9,46.79667468]
[1765699717875,24.18451702,3119.0,3118.9,46.79667468]
[1765699719076,24.18451702,3119.0,3118.9,16.79667468]
[1765699719257,24.18451702,3119.0,3118.9,46.79667468]
[1765699723172,24.18451702,3119.0,3118.9,16.79667468]
[1765699723358,24.18451702,3119.0,3118.9,46.79667468]
[1765699728778,24.18451702,3119.0,3118.9,35.96579861]
[1765699729352,24.18451702,3119.0,3118.9,42.02379861]
[1765699729552,24.18451702,3119.0,3118.9,40.02049861]
[1765699729779,24.18451702,3119.0,3118.9,40.50639861]
[1765699729978,24.18451702,3119.0,3118.9,31.88039861]
[1765699730277,24.18451702,3119.0,3118.9,34.50639861]
[1765699730783,24.43471702,3119.0,3118.9,34.02049861]
[1765699731377,24.43471702,3119.0,3118.9,41.54549861]
[1765699731676,24.18451702,3119.0,3118.9,41.54549861]
[1765699732180,24.18451702,3119.0,3118.9,42.03139861]
[1765699733400,24.18451702,3119.0,3118.9,42.03339861]
[1765699735191,24.18451702,3119.0,3118.9,42.48889861]
[1765699737457,24.18451702,3119.0,3118.9,46.84267468]
[1765699740692,24.18451702,3119.0,3118.9,42.52689861]
[1765699741733,24.18451702,3119.0,3118.9,46.84267468]
[1765699743516,24.18451702,3119.0,3118.9,16.84267468]
[1765699743694,24.18451702,3119.0,3118.9,46.84267468]
[1765699744217,24.18451702,3119.0,3118.9,51.15901121]
[1765699748814,24.18451702,3119.0,3118.9,21.15901121]
[1765699749117,24.18451702,3119.0,3118.9,41.54805907]
[1765699749316,24.42891702,3119.0,3118.9,35.15670335]
[1765699749500,24.92021702,3119.0,3118.9,16.81703988]
[1765699749818,24.92021702,3119.0,3118.9,19.21803988]
[1765699750917,24.92021702,3119.0,3118.9,19.36303988]
[1765699751115,24.92021702,3119.0,3118.9,18.25903988]
[1765699751421,24.92021702,3119.0,3118.9,17.42303988]
[1765699751993,24.92021702,3119.0,3118.9,8.57470335]
[1765699752188,24.92021702,3119.0,3118.9,18.57470335]
[1765699752504,27.41243872,3119.0,3118.9,4.17072406]
[1765699752912,27.41243872,3119.0,3118.9,4.75119935]
[1765699763309,24.92021702,3119.0,3118.9,4.75119935]
[1765699778141,24.42891702,3119.0,3118.9,4.75119935]
[1765699780048,24.18451702,3119.0,3118.9,4.75119935]
[1765699780222,24.92051702,3119.0,3118.9,4.75119935]
[1765699781246,24.46471702,3119.0,3118.9,4.75119935]
[1765699782221,24.18451702,3119.0,3118.9,5.22549935]
[1765699783963,24.18451702,3119.0,3118.9,7.02320656]
[1765699784826,24.18451702,3119.0,3118.9,7.42871056]
[1765699789764,24.18451702,3119.0,3118.9,37.42871056]
[1765699790663,24.18451702,3119.0,3118.9,7.42871056]
[1765699790856,24.18451702,3119.0,3118.9,37.42871056]
[1765699796058,24.18451702,3119.0,3118.9,47.42871056]
[1765699796271,24.18451702,3119.0,3118.9,37.42871056]
[1765699799034,24.18451702,3119.0,3118.9,7.42871056]
[1765699799241,24.18451702,3119.0,3118.9,37.42871056]
[1765699801766,24.18451702,3119.0,3118.9,6.07370656]
[1765699801767,24.92061702,3119.0,3118.9,6.07370656]
[1765699801971,24.18451702,3119.0,3118.9,35.68329935]
[1765699802159,24.64381702,3119.0,3118.9,5.15670335]
[1765699802359,24.92061702,3119.0,3118.9,4.75119935]
[1765699802547,27.41287872,3119.0,3118.9,4.17072406]
[1765699802738,27.41287872,3119.0,3118.9,4.75119935]
[1765699803843,24.92061702,3119.0,3118.9,4.75119935]
[1765699811882,24.92061702,3119.0,3118.9,9.06917512]
[1765699812177,24.18451702,3119.0,3118.9,9.52007512]
[1765699812562,24.46331702,3119.0,3118.9,9.06917512]
[1765699813466,24.92061702,3119.0,3118.9,9.06917512]
[1765699814880,24.92061702,3119.0,3118.9,9.06878312]
[1765699817688,24.46331702,3119.0,3118.9,9.06878312]
[1765699818867,24.18451702,3119.0,3118.9,9.06878312]
[1765699819186,24.18451702,3119.0,3118.9,9.51968312]
[1765699820381,24.18451702,3119.0,3118.9,9.06878312]
[1765699822581,24.46511702,3119.0,3118.9,9.06878312]
[1765699823665,24.92061702,3119.0,3118.9,9.06878312]
[1765699825298,24.46511702,3119.0,3118.9,9.06878312]
[1765699833496,24.92061702,3119.0,3118.9,9.06878312]
[1765699839271,24.46511702,3119.0,3118.9,9.06878312]
[1765699839599,24.18451702,3119.0,3118.9,9.06878312]
[1765699840598,24.18451702,3119.0,3118.9,10.00248312]
[1765699840802,24.18451702,3119.0,3118.9,5.68489935]
[1765699841002,24.18451702,3119.0,3118.9,10.00248312]
[1765699842079,24.18451702,3119.0,3118.9,15.23057089]
[1765699842290,24.18451702,3119.0,3118.9,17.07426412]
[1765699844179,24.18451702,3119.0,3118.9,12.75668035]
[1765699845205,24.18451702,3119.0,3118.9,17.07426412]
[1765699845612,24.18451702,3119.0,3118.9,47.07426412]
[1765699846694,24.18451702,3119.0,3118.9,27.97068035]
[1765699846885,24.18451702,3119.0,3118.9,18.29909658]
[1765699847207,24.43971702,3119.0,3118.9,9.97928712]
[1765699847380,24.18451702,3119.0,3118.9,9.97928712]
[1765699847909,24.18451702,3119.0,3118.9,10.46008712]